[Event "Championnat d'Europe de Blitz"]
[Date "2024.12.09"]
[White "Vuckovic, Zarko"]
[Black "Kues, Hendrik"]
[WhiteElo "2334"]
[BlackElo "2149"]
[Round "4.47"]
[Result "1/2-1/2"]
[TimeControl "180+2"]

1. e4 {[%clk 00:03:03]} c5 {[%clk 00:03:04]} 2. Nf3 {[%emt 00:00:03] [%clk
00:03:02]} g6 {[%clk 00:03:05]} 3. c3 {[%clk 00:03:03]} Bg7 {[%emt 00:00:01]
[%clk 00:03:06]} 4. d4 {[%clk 00:03:05]} cxd4 {[%clk 00:03:07]} 5. cxd4 {[%emt
00:00:01] [%clk 00:03:06]} d5 {[%clk 00:03:08]} 6. e5 {[%clk 00:03:07]} Nc6
{[%emt 00:00:01] [%clk 00:03:09]} 7. h3 {[%emt 00:00:07] [%clk 00:03:02]} Bf5
{[%emt 00:00:03] [%clk 00:03:08]} 8. Nc3 {[%emt 00:00:02] [%clk 00:03:03]} h5
{[%emt 00:00:19] [%clk 00:02:52]} 9. Bb5 {[%clk 00:03:04]} Rc8 {[%emt 00:00:07]
[%clk 00:02:47]} 10. O-O {[%emt 00:00:02] [%clk 00:03:04]} a6 {[%emt 00:00:08]
[%clk 00:02:42]} 11. Ba4 {[%clk 00:03:05]} Nh6 {[%emt 00:00:09] [%clk 00:02:35]}
12. Bg5 {[%clk 00:03:05]} O-O {[%emt 00:00:05] [%clk 00:02:33]} 13. Qd2 {[%clk
00:03:06]} Kh7 {[%emt 00:00:01] [%clk 00:02:33]} 14. Bb3 {[%clk 00:03:08]} Be4
{[%emt 00:00:10] [%clk 00:02:25]} 15. Ne1 {[%emt 00:00:17] [%clk 00:02:52]} Na5
{[%emt 00:00:09] [%clk 00:02:18]} 16. Nxe4 {[%emt 00:00:33] [%clk 00:02:21]}
dxe4 {[%emt 00:00:04] [%clk 00:02:16]} 17. Qb4 {[%emt 00:00:04] [%clk 00:02:20]}
Nxb3 {[%emt 00:00:11] [%clk 00:02:07]} 18. axb3 {[%emt 00:00:07] [%clk
00:02:15]} Nf5 {[%emt 00:00:15] [%clk 00:01:54]} 19. Rd1 {[%emt 00:00:05] [%clk
00:02:11]} Qd5 {[%emt 00:00:27] [%clk 00:01:29]} 20. g4 {[%emt 00:00:36] [%clk
00:01:38]} hxg4 {[%emt 00:00:03] [%clk 00:01:28]} 21. hxg4 {[%clk 00:01:39]} Nh6
{[%emt 00:00:01] [%clk 00:01:28]} 22. Bxh6 {[%emt 00:00:03] [%clk 00:01:38]}
Bxh6 {[%emt 00:00:02] [%clk 00:01:29]} 23. Qxe7 {[%emt 00:00:07] [%clk
00:01:32]} Rce8 {[%emt 00:00:09] [%clk 00:01:22]} 24. Qh4 {[%emt 00:00:02] [%clk
00:01:31]} g5 {[%emt 00:00:07]} 25. Qg3 {[%clk 00:01:30]} Bg7 {[%emt 00:00:03]
[%clk 00:01:19]} 26. Ng2 {[%emt 00:00:02] [%clk 00:01:30]} f6 {[%emt 00:00:07]
[%clk 00:01:15]} 27. Ne3 {[%emt 00:00:10] [%clk 00:01:22]} Qxb3 {[%emt 00:00:05]
[%clk 00:01:12]} 28. e6 {[%clk 00:01:24]} Qxe6 {[%emt 00:00:05] [%clk 00:01:09]}
29. Nf5 {[%emt 00:00:02] [%clk 00:01:23]} Kg8 {[%clk 00:01:11]} 30. Rc1 {[%emt
00:00:06] [%clk 00:01:20]} Rf7 {[%emt 00:00:03] [%clk 00:01:09]} 31. Nd6 {[%emt
00:00:09] [%clk 00:01:13]} Rd7 {[%emt 00:00:24] [%clk 00:00:48]} 32. Nxe8 {[%emt
00:00:02] [%clk 00:01:12]} Qxe8 {[%clk 00:00:49]} 33. Rc7 {[%emt 00:00:06] [%clk
00:01:08]} Rxd4 {[%emt 00:00:09] [%clk 00:00:43]} 34. Qb3+ {[%emt 00:00:12]
[%clk 00:00:57]} Kh8 {[%emt 00:00:12] [%clk 00:00:34]} 35. Qxb7 {[%emt 00:00:02]
[%clk 00:00:57]} e3 {[%emt 00:00:07] [%clk 00:00:29]} 36. Rc8 {[%emt 00:00:25]
[%clk 00:00:33]} exf2+ {[%emt 00:00:12] [%clk 00:00:18]} 37. Rxf2 {[%clk
00:00:34]} Rd8 {[%clk 00:00:20]} 38. Rh2+ {[%emt 00:00:16] [%clk 00:00:20]} Kg8
{[%emt 00:00:05] [%clk 00:00:18]} 39. Qb3+ {[%emt 00:00:01] [%clk 00:00:20]} Kf8
{[%emt 00:00:04] [%clk 00:00:16]} 40. Qb4+ {[%clk 00:00:22]} Kg8 {[%emt
00:00:01] [%clk 00:00:17]} 41. Qc4+ {[%emt 00:00:01] [%clk 00:00:23]} Kf8 {[%emt
00:00:02] [%clk 00:00:16]} 42. Qc5+ {[%emt 00:00:10] [%clk 00:00:16]} Kg8 {[%clk
00:00:18]} 43. Qc4+ {[%emt 00:00:08] [%clk 00:00:10]} Kf8 {[%clk 00:00:19]} 44.
Rxd8 {[%clk 00:00:12]} Qxd8 {[%clk 00:00:20]} 45. Re2 {[%emt 00:00:01] [%clk
00:00:13]} f5 {[%emt 00:00:05] [%clk 00:00:17]} 46. Qc5+ {[%emt 00:00:02] [%clk
00:00:13]} Kg8 {[%clk 00:00:18]} 47. Qxf5 {[%emt 00:00:03] [%clk 00:00:12]} Qd1+
{[%emt 00:00:04]} 48. Qf1 {[%emt 00:00:01] [%clk 00:00:10]} Qd4+ {[%emt
00:00:02] [%clk 00:00:19]} 49. Kh1 {[%emt 00:00:03] [%clk 00:00:09]} Qxg4 {[%emt
00:00:03] [%clk 00:00:19]} 50. Rh2 {[%emt 00:00:05] [%clk 00:00:05]} Qe4+ {[%emt
00:00:02] [%clk 00:00:19]} 51. Rg2 {[%clk 00:00:06]} Qh4+ {[%emt 00:00:01] [%clk
00:00:20]} 52. Rh2 {[%clk 00:00:07]} Qe4+ {[%clk 00:00:22]} 53. Qg2 {[%emt
00:00:01] [%clk 00:00:08]} Qe1+ {[%emt 00:00:02] [%clk 00:00:23]} 54. Qg1 {[%clk
00:00:09]} Qe4+ {[%clk 00:00:24]} 55. Rg2 {[%emt 00:00:02] [%clk 00:00:10]} Qh4+
{[%clk 00:00:25]} 56. Qh2 {[%emt 00:00:01] [%clk 00:00:11]} Qe1+ {[%clk
00:00:26]} 57. Rg1 {[%clk 00:00:12]} Qe4+ {[%clk 00:00:28]} 58. Qg2 {[%clk
00:00:13]} 1/2-1/2

[Site "Europe Echecs"]

[Event "Championnat d'Europe de Blitz"]
[Date "2024.12.09"]
[White "Ilic, Ljubomir"]
[Black "Nikolovski, Nikola"]
[WhiteElo "2076"]
[BlackElo "2407"]
[Round "4.49"]
[Result "0-1"]
[TimeControl "180+2"]

1. c4 {[%clk 00:03:03]} f5 {[%clk 00:03:03]} 2. Nc3 {[%emt 00:00:01] [%clk
00:03:03]} Nf6 {[%emt 00:00:01] [%clk 00:03:04]} 3. Nf3 {[%emt 00:00:04] [%clk
00:03:00]} e6 {[%emt 00:00:02] [%clk 00:03:04]} 4. d3 {[%emt 00:00:26] [%clk
00:02:35]} Bb4 {[%emt 00:00:14] [%clk 00:02:52]} 5. Bd2 {[%emt 00:00:02] [%clk
00:02:35]} O-O {[%emt 00:00:04] [%clk 00:02:51]} 6. e3 {[%emt 00:00:05] [%clk
00:02:31]} d6 {[%emt 00:00:10] [%clk 00:02:43]} 7. Be2 {[%emt 00:00:05] [%clk
00:02:27]} b6 {[%emt 00:00:15] [%clk 00:02:31]} 8. O-O {[%emt 00:00:04] [%clk
00:02:25]} Bb7 {[%emt 00:00:02] [%clk 00:02:32]} 9. a3 {[%emt 00:00:09] [%clk
00:02:17]} Bxc3 {[%emt 00:00:02] [%clk 00:02:32]} 10. Bxc3 {[%emt 00:00:01]
[%clk 00:02:17]} Qe7 {[%emt 00:00:06] [%clk 00:02:28]} 11. Rc1 {[%emt 00:00:09]
[%clk 00:02:10]} Nbd7 {[%emt 00:00:05] [%clk 00:02:25]} 12. b4 {[%emt 00:00:40]
[%clk 00:01:32]} e5 {[%clk 00:02:26]} 13. d4 {[%emt 00:00:09] [%clk 00:01:25]}
e4 {[%emt 00:00:25] [%clk 00:02:04]} 14. Nd2 {[%emt 00:00:09] [%clk 00:01:16]}
c5 {[%emt 00:00:02] [%clk 00:02:05]} 15. d5 {[%emt 00:00:24] [%clk 00:00:54]}
Rae8 {[%emt 00:00:08] [%clk 00:02:00]} 16. a4 {[%emt 00:00:10] [%clk 00:00:46]}
Ne5 {[%emt 00:00:09] [%clk 00:01:52]} 17. Bxe5 {[%emt 00:00:04] [%clk 00:00:43]}
Qxe5 {[%emt 00:00:03] [%clk 00:01:52]} 18. bxc5 {[%emt 00:00:05] [%clk
00:00:40]} bxc5 {[%emt 00:00:09] [%clk 00:01:45]} 19. Rb1 {[%emt 00:00:14] [%clk
00:00:27]} Bc8 {[%emt 00:00:01] [%clk 00:01:46]} 20. Nb3 {[%emt 00:00:12] [%clk
00:00:17]} f4 {[%emt 00:00:04] [%clk 00:01:44]} 21. exf4 {[%emt 00:00:06] [%clk
00:00:13]} Qxf4 {[%emt 00:00:02] [%clk 00:01:45]} 22. Qd2 {[%emt 00:00:09] [%clk
00:00:06]} Qh4 {[%emt 00:00:04] [%clk 00:01:44]} 23. Na5 {[%emt 00:00:12] [%clk
00:00:00]} 0-1

[Site "Europe Echecs"]

[Event "Championnat d'Europe de Blitz"]
[Date "2024.12.09"]
[White "Kralevski, Aleksander"]
[Black "Horvath, Dominik"]
[WhiteElo "2028"]
[BlackElo "2542"]
[Round "4.50"]
[Result "0-1"]
[TimeControl "180+2"]

1. e4 {[%clk 00:03:03]} d5 {[%emt 00:00:01] [%clk 00:03:03]} 2. exd5 {[%emt
00:00:03] [%clk 00:03:04]} Qxd5 {[%clk 00:03:04]} 3. Nc3 {[%clk 00:03:05]} Qa5
{[%clk 00:03:05]} 4. d4 {[%clk 00:03:06]} Nf6 {[%emt 00:00:01] [%clk 00:03:06]}
5. Nf3 {[%clk 00:03:07]} Bf5 {[%clk 00:03:07]} 6. Ne5 {[%emt 00:00:05] [%clk
00:03:05]} c6 {[%emt 00:00:09] [%clk 00:03:01]} 7. Bc4 {[%emt 00:00:02] [%clk
00:03:04]} e6 {[%clk 00:03:02]} 8. O-O {[%emt 00:00:02] [%clk 00:03:04]} Nbd7
{[%emt 00:00:03] [%clk 00:03:00]} 9. Re1 {[%emt 00:00:06] [%clk 00:03:00]} Be7
{[%emt 00:00:16] [%clk 00:02:47]} 10. Bg5 {[%emt 00:00:03] [%clk 00:02:59]} h6
{[%emt 00:00:06] [%clk 00:02:43]} 11. Bh4 {[%emt 00:00:06] [%clk 00:02:55]} Rd8
{[%emt 00:00:04] [%clk 00:02:40]} 12. Qe2 {[%emt 00:00:08] [%clk 00:02:49]} O-O
{[%emt 00:00:04] [%clk 00:02:39]} 13. Nxd7 {[%emt 00:00:06] [%clk 00:02:45]}
Rxd7 {[%clk 00:02:39]} 14. Rad1 {[%emt 00:00:51] [%clk 00:01:56]} Rfd8 {[%emt
00:00:01] [%clk 00:02:40]} 15. Qe5 {[%emt 00:00:26] [%clk 00:01:32]} Qb4 {[%clk
00:02:41]} 16. Bb3 {[%emt 00:00:06] [%clk 00:01:29]} Rxd4 {[%emt 00:00:21] [%clk
00:02:22]} 17. Rxd4 {[%emt 00:00:09] [%clk 00:01:21]} Qxd4 {[%emt 00:00:02]
[%clk 00:02:22]} 18. Bxf6 {[%emt 00:00:10] [%clk 00:01:13]} Bxf6 {[%emt
00:00:03] [%clk 00:02:21]} 19. Qa5 {[%emt 00:00:08] [%clk 00:01:06]} Qb6 {[%emt
00:00:03] [%clk 00:02:21]} 20. Qa3 {[%emt 00:00:03] [%clk 00:01:05]} Rd2 {[%emt
00:00:06] [%clk 00:02:17]} 21. Nd1 {[%emt 00:00:03] [%clk 00:01:04]} Bxc2 {[%emt
00:00:14] [%clk 00:02:04]} 22. Bxc2 {[%emt 00:00:09] [%clk 00:00:57]} Rxc2
{[%emt 00:00:02] [%clk 00:02:05]} 23. Qd6 {[%emt 00:00:07] [%clk 00:00:52]} Qd8
{[%emt 00:00:08] [%clk 00:01:59]} 24. Qa3 {[%emt 00:00:04] [%clk 00:00:50]} Qd2
{[%emt 00:00:04] [%clk 00:01:57]} 25. Rf1 {[%emt 00:00:06] [%clk 00:00:46]} Bd4
{[%emt 00:00:03] [%clk 00:01:56]} 26. Qg3 {[%emt 00:00:11] [%clk 00:00:37]} Rc1
{[%emt 00:00:09] [%clk 00:01:48]} 27. Qf3 {[%emt 00:00:08] [%clk 00:00:31]} Bxb2
{[%emt 00:00:02] [%clk 00:01:48]} 28. h4 {[%emt 00:00:03] [%clk 00:00:31]} Bf6
{[%emt 00:00:01] [%clk 00:01:49]} 29. g3 {[%emt 00:00:02] [%clk 00:00:31]} Qxa2
{[%emt 00:00:05] [%clk 00:01:46]} 0-1

[Site "Europe Echecs"]

[Event "Championnat d'Europe de Blitz"]
[Date "2024.12.09"]
[White "Kiratzopoulos, Efthimios"]
[Black "Hamitevici, Vladimir"]
[WhiteElo "2193"]
[BlackElo "2423"]
[Round "4.51"]
[Result "0-1"]
[TimeControl "180+2"]

1. d4 {[%emt 00:00:04] [%clk 00:03:02]} Nf6 {[%clk 00:03:03]} 2. Nf3 {[%clk
00:03:02]} c5 {[%emt 00:00:02] [%clk 00:03:04]} 3. c3 {[%emt 00:00:02] [%clk
00:03:02]} d5 {[%emt 00:00:19] [%clk 00:02:47]} 4. Bg5 {[%emt 00:00:37] [%clk
00:02:26]} Ne4 {[%emt 00:00:22] [%clk 00:02:27]} 5. Bf4 {[%emt 00:00:01] [%clk
00:02:27]} Nc6 {[%emt 00:00:05] [%clk 00:02:25]} 6. e3 {[%emt 00:00:01] [%clk
00:02:27]} Bg4 {[%emt 00:00:07] [%clk 00:02:19]} 7. Be2 {[%emt 00:00:03] [%clk
00:02:27]} e6 {[%emt 00:00:03] [%clk 00:02:18]} 8. Nbd2 {[%emt 00:00:03] [%clk
00:02:26]} Nxd2 {[%emt 00:00:12] [%clk 00:02:08]} 9. Qxd2 {[%emt 00:00:08] [%clk
00:02:20]} Bd6 {[%emt 00:00:12] [%clk 00:01:59]} 10. Bxd6 {[%emt 00:00:37] [%clk
00:01:44]} Qxd6 {[%emt 00:00:02] [%clk 00:02:00]} 11. h3 {[%clk 00:01:46]} Bh5
{[%emt 00:00:05] [%clk 00:01:57]} 12. a3 {[%emt 00:00:20] [%clk 00:01:27]} O-O
{[%emt 00:00:04] [%clk 00:01:55]} 13. b4 {[%emt 00:00:03] [%clk 00:01:26]} cxd4
{[%emt 00:00:18] [%clk 00:01:39]} 14. cxd4 {[%emt 00:00:02] [%clk 00:01:27]}
Rfc8 {[%emt 00:00:14] [%clk 00:01:27]} 15. O-O {[%emt 00:00:02] [%clk 00:01:27]}
Bxf3 {[%emt 00:00:22] [%clk 00:01:07]} 16. Bxf3 {[%emt 00:00:01] [%clk
00:01:28]} Nb8 {[%emt 00:00:06] [%clk 00:01:03]} 17. Rfc1 {[%emt 00:00:05] [%clk
00:01:24]} Nd7 {[%emt 00:00:03] [%clk 00:01:02]} 18. Rxc8+ {[%emt 00:00:38]
[%clk 00:00:49]} Rxc8 {[%clk 00:01:03]} 19. Rc1 {[%clk 00:00:50]} Rc6 {[%clk
00:01:05]} 20. e4 {[%emt 00:00:08] [%clk 00:00:44]} dxe4 {[%emt 00:00:19] [%clk
00:00:48]} 21. Bxe4 {[%emt 00:00:01] [%clk 00:00:45]} Rc7 {[%emt 00:00:17] [%clk
00:00:34]} 22. Bf3 {[%emt 00:00:26] [%clk 00:00:20]} Nf6 {[%emt 00:00:21]} 23.
Rc3 {[%clk 00:00:12]} h6 {[%emt 00:00:07] [%clk 00:00:20]} 24. Qc1 {[%clk
00:00:13]} Rd7 {[%emt 00:00:02] [%clk 00:00:20]} 25. Rc8+ {[%emt 00:00:06] [%clk
00:00:10]} Kh7 {[%clk 00:00:21]} 26. Rc4 {[%emt 00:00:02] [%clk 00:00:09]} a6
{[%emt 00:00:12] [%clk 00:00:12]} 27. a4 {[%emt 00:00:04] [%clk 00:00:06]} g6
{[%emt 00:00:04] [%clk 00:00:11]} 28. a5 {[%emt 00:00:01] [%clk 00:00:07]} Kg7
{[%emt 00:00:02] [%clk 00:00:11]} 29. Qe3 {[%emt 00:00:04] [%clk 00:00:04]} Nd5
{[%emt 00:00:04] [%clk 00:00:10]} 30. Bxd5 {[%emt 00:00:02] [%clk 00:00:04]}
Qxd5 {[%emt 00:00:01] [%clk 00:00:11]} 31. Qe5+ {[%clk 00:00:06]} Qxe5 {[%emt
00:00:01] [%clk 00:00:12]} 32. dxe5 {[%clk 00:00:07]} Rd1+ {[%emt 00:00:06]
[%clk 00:00:07]} 33. Kh2 {[%emt 00:00:02] [%clk 00:00:08]} Rd5 {[%clk 00:00:08]}
34. f4 {[%emt 00:00:03] [%clk 00:00:08]} g5 {[%emt 00:00:01] [%clk 00:00:09]}
35. Kg3 {[%emt 00:00:02] [%clk 00:00:08]} Kg6 {[%emt 00:00:02] [%clk 00:00:09]}
36. Kf3 {[%emt 00:00:02] [%clk 00:00:07]} gxf4 {[%emt 00:00:03] [%clk 00:00:08]}
37. Kxf4 {[%clk 00:00:08]} Rd2 {[%emt 00:00:05] [%clk 00:00:06]} 38. g4 {[%emt
00:00:01] [%clk 00:00:09]} Rb2 {[%emt 00:00:02] [%clk 00:00:06]} 39. h4 {[%emt
00:00:01] [%clk 00:00:10]} h5 {[%emt 00:00:02] [%clk 00:00:06]} 40. g5 {[%emt
00:00:02] [%clk 00:00:10]} Rg2 {[%emt 00:00:03] [%clk 00:00:05]} 41. Kf3 {[%emt
00:00:02] [%clk 00:00:10]} Rb2 {[%emt 00:00:01] [%clk 00:00:06]} 42. Kf4 {[%clk
00:00:11]} Rb3 {[%clk 00:00:07]} 43. Rd4 {[%emt 00:00:02] [%clk 00:00:10]} Rh3
{[%clk 00:00:08]} 44. Rd7 {[%emt 00:00:02] [%clk 00:00:10]} Rxh4+ {[%emt
00:00:02] [%clk 00:00:09]} 45. Ke3 {[%emt 00:00:02] [%clk 00:00:10]} Rxb4 {[%emt
00:00:01] [%clk 00:00:10]} 46. Rc7 {[%emt 00:00:05] [%clk 00:00:07]} h4 {[%emt
00:00:01] [%clk 00:00:10]} 47. Kf3 {[%clk 00:00:08]} h3 {[%emt 00:00:02] [%clk
00:00:10]} 48. Kg3 {[%clk 00:00:10]} Rb3+ {[%emt 00:00:02] [%clk 00:00:11]} 49.
Kh2 {[%clk 00:00:11]} Rb5 {[%emt 00:00:03] [%clk 00:00:10]} 50. Rd7 {[%emt
00:00:02] [%clk 00:00:12]} Rxe5 {[%emt 00:00:05] [%clk 00:00:08]} 51. Rxb7
{[%clk 00:00:13]} Rxg5 {[%emt 00:00:01] [%clk 00:00:08]} 52. Rb6 {[%emt
00:00:01] [%clk 00:00:14]} Rxa5 {[%emt 00:00:01] [%clk 00:00:09]} 53. Kxh3
{[%clk 00:00:14]} Ra1 {[%emt 00:00:02] [%clk 00:00:10]} 54. Kg4 {[%clk
00:00:15]} a5 {[%clk 00:00:11]} 55. Ra6 {[%clk 00:00:16]} a4 {[%clk 00:00:13]}
0-1

[Site "Europe Echecs"]